fUST/lending_fUST_20240321
["ID","MTS","AMOUNT","RATE_DAILY","PERIOD"]
[319793026,1710970242883,-500.0,0.00080818,31]
[319793027,1710970242892,-500.0,0.00080818,31]
[319793028,1710970242901,-397.43,0.00080818,31]
[319793029,1710970242910,-3516.33,0.00080818,31]
[319793030,1710970242919,-500.0,0.00080818,31]
[319793031,1710970242929,-500.0,0.00080818,31]
[319793032,1710970242938,-172.56,0.00080818,31]
[319793033,1710970242948,-500.0,0.00080818,31]
[319793035,1710970242958,-500.0,0.00081091,31]
[319793036,1710970242967,-500.0,0.00081091,31]
[319793037,1710970242976,-272.92,0.00081092,31]
[319793038,1710970242985,-500.0,0.00081092,31]
[319793039,1710970242994,-3516.33,0.00081092,31]
[319793040,1710970243004,-500.0,0.00081092,31]
[319793041,1710970243017,-500.0,0.00081092,31]
[319793042,1710970243028,-500.0,0.00081092,31]
[319793043,1710970243040,-219.0,0.00081117,2]
[319793044,1710970243054,-500.0,0.00081365,31]
[319793045,1710970243067,-500.0,0.00081365,31]
[319793046,1710970243079,-500.0,0.00081366,31]
[319793047,1710970243092,-3516.33,0.00081366,31]
[319793050,1710970243102,-290.72,0.00081366,31]
[319793053,1710970243113,-500.0,0.00081366,31]
[319793057,1710970243123,-500.0,0.00081366,31]
[319793058,1710970243134,-5000.0,0.00081528,120]
[319793060,1710970243146,-500.0,0.00081639,31]
[319793061,1710970243157,-500.0,0.00081639,31]
[319793064,1710970243168,-500.0,0.0008164,31]
[319793067,1710970243179,-3516.33,0.0008164,31]
[319793070,1710970243190,-500.0,0.0008164,31]
[319793074,1710970243201,-500.0,0.0008164,31]
[319793077,1710970243211,-500.0,0.00081913,31]
[319793080,1710970243222,-500.0,0.00081913,31]
[319793084,1710970243234,-500.0,0.00081914,31]
[319793088,1710970243246,-3516.33,0.00081914,31]
[319793092,1710970243258,-500.0,0.00081914,31]
[319793096,1710970243269,-500.0,0.00081914,31]
[319793099,1710970243280,-500.0,0.00082187,31]
[319793103,1710970243291,-500.0,0.00082187,31]
[319793106,1710970243302,-500.0,0.00082188,31]
[319793109,1710970243312,-3516.33,0.00082188,31]
[319793112,1710970243322,-500.0,0.00082188,31]
[319793115,1710970243332,-500.0,0.00082188,31]
[319793118,1710970243344,-500.0,0.00082191,120]
[319793121,1710970243355,-3179.02268972,0.00082343,120]
[319793247,1710970243912,-1000.0,0.00082343,120]
[319793539,1710970291482,218.96000001,0.000299,18]
[319793555,1710970430107,24900.0,0.00021848,2]
[319793557,1710971026572,100.0,0.00021848,2]
[319793558,1710971026597,82.8098,0.00021848,2]
[319793569,1710971290378,24900.0,0.00021848,2]
[319793647,1710971431715,-459.20355536,0.00070817,120]
[319793648,1710971431724,-807.79076924,0.00075098,120]
[319793691,1710971437744,-192.20923076,0.00075098,120]
[319793693,1710971437753,-813.46684119,0.00075289,120]
[319793700,1710971437819,-621.10261512,0.00075289,120]
[319794133,1710971443080,-8565.43054369,0.00075289,120]
[319794134,1710971443090,-7618.68109792,0.00076042,120]
[319794323,1710971445854,-2381.31890208,0.00076042,120]
[319794324,1710971445863,-10000.0,0.00076802,120]
[319794326,1710971445873,-10000.0,0.0007757,120]
[319794328,1710971445882,-181.2751192,0.00077859,2]
[319794330,1710971445891,-500.0,0.00078117,2]
[319794332,1710971445900,-10000.0,0.00078346,120]
[319794333,1710971445908,-1000.0,0.00078863,120]
[319794335,1710971445917,-10000.0,0.0007913,120]
[319794336,1710971445926,-281.29194306,0.00079179,120]
[319794338,1710971445935,-199.21201,0.00079386,120]
[319794339,1710971445944,-1000.0,0.000799,120]
[319794340,1710971445953,-10000.0,0.00079921,120]
[319794341,1710971445963,-500.0,0.00079995,31]
[319794342,1710971445972,-500.0,0.00079995,31]
[319794343,1710971445981,-500.0,0.00079995,31]
[319794344,1710971445990,-2000.0,0.0008,60]
[319794345,1710971445999,-305.0467231,0.0008,105]
[319794346,1710971446008,-500.0,0.00080269,31]
[319794347,1710971446017,-500.0,0.00080269,31]
[319794348,1710971446027,-500.0,0.00080269,31]
[319794349,1710971446036,-500.0,0.00080543,31]
[319794350,1710971446046,-202.01,0.00080543,31]
[319794351,1710971446055,-500.0,0.00080543,31]
[319794352,1710971446064,-10000.0,0.0008072,120]
[319794353,1710971446073,-500.0,0.00080817,31]
[319794354,1710971446082,-500.0,0.00080817,31]
[319794355,1710971446091,-500.0,0.00081091,31]
[319794356,1710971446100,-500.0,0.00081091,31]
[319794357,1710971446109,-500.0,0.00081365,31]
[319794358,1710971446118,-500.0,0.00081365,31]
[319794359,1710971446127,-10000.0,0.00081527,120]
[319794360,1710971446136,-500.0,0.00081639,31]
[319794361,1710971446146,-500.0,0.00081639,31]
[319794362,1710971446157,-500.0,0.00081913,31]
[319794363,1710971446166,-500.0,0.00081913,31]
[319794364,1710971446175,-500.0,0.00082187,31]
[319794365,1710971446184,-500.0,0.00082187,31]
[319794366,1710971446194,-1000.0,0.00082191,120]
[319794367,1710971446204,-10000.0,0.00082343,120]
[319794368,1710971446213,-500.0,0.00082461,31]
[319794369,1710971446223,-500.0,0.00082461,31]
[319794370,1710971446232,-219.0,0.00082735,2]
[319794371,1710971446242,-500.0,0.00082735,31]
[319794372,1710971446252,-500.0,0.00082735,31]
[319794373,1710971446261,-340.38445779,0.00082807,7]
[319794374,1710971446271,-500.0,0.00083009,31]
[319794375,1710971446280,-500.0,0.00083009,31]
[319794376,1710971446290,-2000.0,0.00083207,120]
[319794377,1710971446299,-275.2653267,0.00083282,7]
[319794378,1710971446308,-500.0,0.00083283,31]
[319794379,1710971446317,-500.0,0.00083283,31]
[319794380,1710971446327,-500.0,0.00083554,31]
[319794381,1710971446336,-500.0,0.00083554,31]
[319794382,1710971446345,-500.0,0.00083554,31]
[319794383,1710971446355,-500.0,0.00083555,31]
[319794384,1710971446365,-2197.71,0.00083555,31]
[319794385,1710971446374,-644.5791473,0.00083556,7]
[319794386,1710971446383,-1745.46601996,0.00083556,7]
[319794387,1710971446393,-363.99633771,0.00083556,7]
[319794388,1710971446402,-26994.56784524,0.00083556,30]
[319794419,1710971611127,-633.09151644,0.00053112,4]
[319794420,1710971611151,-196.499368,0.00053113,30]
[319794421,1710971611174,-192.575343,0.00053113,30]
[319794422,1710971611203,7856.45014554,0.00030806,7]
[319794423,1710971611226,7643.58143373,0.00030806,7]
[319794424,1710971624274,499.999999,0.00030806,2]
[319794428,1710971671878,271.38722898,0.0001,2]
[319794429,1710971675290,1862.76449759,0.000393,2]
[319794430,1710971677569,22865.84827343,0.0004013,2]
[319794431,1710971677593,25000.0,0.0004013,2]
[319794432,1710971677618,25000.0,0.0004013,2]
[319794433,1710971677643,23977.83377256,0.0004013,2]
[319794434,1710971677666,25000.0,0.0004013,2]
[319794435,1710971677690,17983.14661711,0.0004013,2]
[319794436,1710971808108,3362.67904977,0.0004013,4]
[319794447,1710971902703,3654.17433312,0.0004013,4]
[319794455,1710972607609,-4216.17184147,0.00040115,120]
[319794456,1710972607636,-1325.65976372,0.00040116,4]
[319794457,1710972607663,-350.0,0.00040129,3]
[319794458,1710972607690,-4622.48571022,0.0004013,4]
[319794459,1710972607715,-192.71983278,0.0004013,4]
[319794460,1710972607741,-155.43150981,0.0004013,4]
[319794461,1710972616120,-162.326337,0.00053113,30]
[319794462,1710972616146,-176.79579,0.00053113,30]
[319794463,1710972616174,-162.326337,0.00053113,30]
[319794464,1710972616200,-176.79579,0.00053113,30]
[319794465,1710972620843,-162.326337,0.00055769,30]
[319794466,1710972620867,-257.130185,0.00056809,30]
[319794521,1710972631929,-150.87929656,0.00064753,2]
[319794523,1710972631939,-180.42723615,0.00067826,7]
[319794525,1710972631951,-273.7114849,0.00067827,120]
[319794586,1710972637888,-357.60452381,0.00067827,120]
[319794588,1710972637900,-1949.82266672,0.00067827,120]
[319794590,1710972637909,-24900.0,0.00067828,2]
[319794592,1710972637919,-200.0,0.00067911,2]
[319794594,1710972637928,-17917.67781841,0.0007,120]
[319794596,1710972637938,-199.21201,0.00072304,120]
[319794598,1710972637951,-271.91554496,0.00074842,120]
[319794600,1710972637960,-10000.0,0.00076079,120]
[319794602,1710972637970,-10000.0,0.0007684,120]
[319794604,1710972637979,-10000.0,0.00077609,120]
[319794606,1710972637988,-10000.0,0.00078385,120]
[319794608,1710972637997,-10000.0,0.00079169,120]
[319794611,1710972638007,-150.0,0.00079369,120]
[319794612,1710972638016,-1856.03937424,0.0007996,120]
[319794615,1710972638031,-1044.24677474,0.0007996,120]
[319794617,1710972638042,-7099.71385102,0.0007996,120]
[319794619,1710972638051,-500.0,0.00079995,31]
[319794621,1710972638059,-500.0,0.00079995,31]
[319794623,1710972638069,-500.0,0.00079995,31]
[319794625,1710972638079,-530.78,0.00079995,31]
[319794627,1710972638088,-559.4242566,0.00079995,31]
[319794629,1710972638097,-500.0,0.00079995,31]
[319794631,1710972638106,-500.0,0.00079995,31]
[319794633,1710972638116,-623.54,0.00079995,31]
[319794635,1710972638125,-500.0,0.00079995,31]
[319794637,1710972638134,-524.52,0.00079995,31]
[319794639,1710972638143,-504.41149789,0.00079995,31]
[319794641,1710972638152,-500.0,0.00079995,31]
[319794643,1710972638161,-500.0,0.00079995,31]
[319794645,1710972638171,-500.0,0.00079995,31]
[319794657,1710972638272,-500.0,0.00079995,31]
[319794660,1710972638287,-2000.0,0.0008,60]
[319794662,1710972638297,-1963.0,0.0008,60]
[319794664,1710972638306,-500.0,0.00080542,2]
[319794666,1710972638315,-1734.76488818,0.0008076,120]
[319794668,1710972638326,-2315.64099,0.0008076,120]
[319794670,1710972638337,-3507.60280843,0.0008076,120]
[319794673,1710972638348,-523.03,0.0008076,120]
[319794675,1710972638359,-1918.96131339,0.0008076,120]
[319794677,1710972638368,-2000.0,0.00081,60]
[319794679,1710972638377,-10000.0,0.00081567,120]
[319794681,1710972638386,-2000.0,0.00082,60]
[319794682,1710972638395,-1000.0,0.000822,120]
[319794683,1710972638404,-10000.0,0.00082383,120]
[319794684,1710972638413,-155.67709086,0.00082443,7]
[319794685,1710972638422,-160.29921262,0.00082443,7]
[319794686,1710972638431,-558.42680068,0.00082443,7]
[319794687,1710972638440,-262.65452431,0.00082443,7]
[319794688,1710972638448,-625.29704112,0.00082443,7]
[319794689,1710972638458,-252.30418672,0.00082443,7]
[319794690,1710972638467,-155.10909972,0.00082444,7]
[319794691,1710972638476,-10000.0,0.00083207,120]
[319794692,1710972638485,-599.61935124,0.00083456,2]
[319794693,1710972638494,-500.0,0.00083552,120]
[319794694,1710972638503,-159.90017571,0.00083552,120]
[319794696,1710972638514,-319.2398709,0.00083552,120]
[319794859,1710972640038,-20.85995339,0.00083552,120]
[319794861,1710972640047,-284.66493268,0.00083552,120]
[319794868,1710972640106,-215.33506732,0.00083552,120]
[319794870,1710972640115,-500.0,0.00083552,120]
[319794872,1710972640125,-500.0,0.00083552,120]
[319794874,1710972640135,-500.0,0.00083552,120]
[319794876,1710972640144,-500.0,0.00083552,120]
[319794878,1710972640154,-500.0,0.00083552,120]
[319794880,1710972640163,-500.0,0.00083552,120]
[319794882,1710972640173,-500.0,0.00083552,120]
[319794884,1710972640182,-500.0,0.00083552,120]
[319794886,1710972640191,-517.57032213,0.00083552,120]
[319794888,1710972640200,-500.0,0.00083552,120]
[319794890,1710972640210,-500.0,0.00083552,120]
[319794892,1710972640219,-500.0,0.00083552,120]
[319794894,1710972640228,-455.44199482,0.00083552,120]
[319794896,1710972640240,-44.55800518,0.00083552,120]
[319794898,1710972640250,-500.0,0.00083552,120]
[319794900,1710972640259,-500.0,0.00083552,120]
[319794902,1710972640268,-500.0,0.00083552,120]
[319794904,1710972640277,-500.0,0.00083552,120]
[319794906,1710972640287,-500.0,0.00083552,120]
[319794908,1710972640296,-500.0,0.00083552,120]
[319794910,1710972640305,-500.0,0.00083552,120]
[319794912,1710972640313,-500.0,0.00083552,120]
[319794914,1710972640323,-500.0,0.00083552,120]
[319794915,1710972640332,-500.0,0.00083552,120]
[319794917,1710972640341,-500.0,0.00083552,120]
[319794919,1710972640350,-500.0,0.00083552,120]
[319794921,1710972640359,-500.0,0.00083552,120]
[319794923,1710972640368,-500.0,0.00083552,120]
[319794925,1710972640377,-500.0,0.00083552,120]
[319794927,1710972640386,-500.0,0.00083552,120]
[319794929,1710972640395,-500.0,0.00083552,120]
[319794931,1710972640404,-500.0,0.00083552,120]
[319794933,1710972640413,-500.0,0.00083552,120]
[319794935,1710972640422,-500.0,0.00083552,120]
[319794937,1710972640431,-500.0,0.00083552,120]
[319794939,1710972640440,-500.0,0.00083552,120]
[319794941,1710972640449,-500.0,0.00083552,120]
[319794943,1710972640458,-500.0,0.00083552,120]
[319794945,1710972640468,-500.0,0.00083552,120]
[319794947,1710972640478,-500.0,0.00083552,120]
[319794949,1710972640487,-500.0,0.00083552,120]
[319794951,1710972640495,-500.0,0.00083552,120]
[319794953,1710972640505,-500.0,0.00083552,120]
[319794955,1710972640514,-500.0,0.00083552,120]
[319794957,1710972640523,-500.0,0.00083552,120]
[319794959,1710972640533,-500.0,0.00083552,120]
[319794961,1710972640542,-247.78495597,0.00083552,120]
[319794963,1710972640551,-31624.60196566,0.00083553,61]
[319794965,1710972640561,-500.71266636,0.00083553,31]
[319794967,1710972640570,-500.0,0.00083553,31]
[319794969,1710972640580,-500.0,0.00083553,31]
[319794971,1710972640590,-500.0,0.00083553,31]
[319794973,1710972640599,-275.71842074,0.00083553,31]
[319794975,1710972640608,-500.0,0.00083553,31]
[319794977,1710972640616,-500.0,0.00083553,31]
[319794979,1710972640625,-500.0,0.00083553,31]
[319794981,1710972640633,-500.0,0.00083553,31]
[319794983,1710972640643,-500.0,0.00083553,31]
[319794985,1710972640651,-526.67,0.00083553,31]
[319794987,1710972640660,-500.0,0.00083553,31]
[319794989,1710972640669,-500.0,0.00083553,31]
[319794991,1710972640678,-500.0,0.00083553,31]
[319794992,1710972640687,-500.0,0.00083553,31]
[319794994,1710972640696,-500.0,0.00083553,31]
[319794996,1710972640705,-500.0,0.00083553,31]
[319794998,1710972640714,-500.0,0.00083553,31]
[319795000,1710972640723,-500.0,0.00083553,31]
[319795002,1710972640732,-500.0,0.00083553,31]
[319795004,1710972640741,-500.0,0.00083553,31]
[319795006,1710972640750,-1883.83497798,0.00083554,7]
[319795008,1710972640759,-1609.03626607,0.00083554,2]
[319795011,1710972640770,-464.8849598,0.00083554,7]
[319795013,1710972640781,-215.88707238,0.00083554,7]
[319795015,1710972640791,-184.41213736,0.00083554,7]
[319795017,1710972640800,-539.22321355,0.00083554,7]
[319795019,1710972640810,-227.41828234,0.00083554,7]
[319795020,1710972640819,-500.0,0.00083554,31]
[319795022,1710972640827,-500.0,0.00083554,31]
[319795024,1710972640837,-500.0,0.00083554,31]
[319795027,1710972640849,-500.0,0.00083554,31]
[319795029,1710972640861,-500.0,0.00083554,31]
[319795030,1710972640873,-604.42,0.00083554,31]
[319795031,1710972640884,-500.0,0.00083554,31]
[319795032,1710972640896,-333.33,0.00083554,31]
[319795033,1710972640908,-500.0,0.00083554,31]
[319795034,1710972640918,-514.33,0.00083554,31]
[319795035,1710972640931,-2352.02,0.00083554,31]
[319795036,1710972640941,-500.0,0.00083554,31]
[319795037,1710972640951,-422.60270709,0.00083555,7]
[319795038,1710972640963,-500.0,0.00083555,31]
[319795039,1710972640975,-500.0,0.00083555,31]
[319795040,1710972640986,-417.14495121,0.00083555,31]
[319795041,1710972640997,-500.0,0.00083555,31]
[319795042,1710972641009,-168.78841593,0.00083555,31]
[319795043,1710972641021,-500.0,0.00083555,31]
[319795044,1710972641034,-503.33360642,0.00083555,31]
[319795045,1710972641045,-500.0,0.00083555,31]
[319795046,1710972641056,-412.14772662,0.00083555,31]
[319795047,1710972641067,-500.0,0.00083555,31]
[319795048,1710972641078,-500.0,0.00083555,31]
[319795049,1710972641088,-1000.0,0.00083555,120]
[319795050,1710972641098,-346.81,0.00083555,31]
[319795051,1710972641108,-500.0,0.00083555,31]
[319795052,1710972641118,-500.0,0.00083555,31]
[319795053,1710972641129,-420.75241858,0.00083555,31]
[319795054,1710972641140,-509.56792837,0.00083555,31]
[319795055,1710972641151,-500.0,0.00083555,31]
[319795056,1710972641162,-500.0,0.00083555,31]
[319795057,1710972641175,-201.748141,0.00083555,31]
[319795058,1710972641186,-1162.23,0.00083555,31]
[319795060,1710972641197,-505.82497641,0.00083555,31]
[319795062,1710972641209,-500.0,0.00083555,31]
[319795064,1710972641220,-464.96584488,0.00083555,21]
[319795066,1710972641231,-500.0,0.00083555,31]
[319795069,1710972641242,-399.830793,0.00083555,31]
[319795071,1710972641253,-500.0,0.00083555,31]
[319795073,1710972641263,-500.0,0.00083555,31]
[319795075,1710972641273,-505.59181715,0.00083555,31]
[319795077,1710972641284,-2252.65,0.00083555,31]
[319795079,1710972641294,-1529.01,0.00083555,31]
[319795081,1710972641304,-151.0,0.00083555,31]
[319795083,1710972641316,-500.0,0.00083555,31]
[319795085,1710972641328,-1166.31,0.00083555,31]
[319795087,1710972641338,-500.0,0.00083555,31]
[319795089,1710972641349,-500.0,0.00083555,31]
[319795092,1710972641359,-500.0,0.00083555,31]
[319795094,1710972641373,-21515.0065445,0.00083556,30]
[319795096,1710972641383,-151.0,0.00083556,120]
[319795098,1710972641392,-151.0,0.00083556,120]
[319795100,1710972641404,-500.0,0.00083827,31]
[319795102,1710972641414,-589.61905489,0.00083827,31]
[319795104,1710972641425,-500.0,0.00083827,31]
[319795107,1710972641435,-500.0,0.00083827,31]
[319795109,1710972641446,-500.0,0.00083828,31]
[319795111,1710972641458,-500.0,0.00083828,31]
[319795113,1710972641469,-500.0,0.00083828,31]
[319795115,1710972641482,-415.85688571,0.00083828,31]
[319795117,1710972641493,-500.0,0.00083829,31]
[319795119,1710972641504,-447.54871667,0.00083829,31]
[319795122,1710972641519,-615.87824638,0.00083829,31]
[319795124,1710972641534,-500.0,0.00083829,31]
[319795126,1710972641547,-500.0,0.00083829,31]
[319795128,1710972641559,-1162.23,0.00083829,31]
[319795130,1710972641571,-500.0,0.00083829,31]
[319795132,1710972641584,-500.0,0.00083829,31]
[319795135,1710972641595,-500.0,0.00083829,31]
[319795137,1710972641606,-153.116158,0.00084003,120]
[319795139,1710972641617,-10115.65130888,0.00084003,2]
[319795141,1710972641628,-2000.0,0.00084039,120]
[319795143,1710972641638,-500.0,0.00084101,31]
[319795145,1710972641648,-500.0,0.00084101,31]
[319795147,1710972641658,-500.0,0.00084101,31]
[319795149,1710972641668,-221.132844,0.00084101,120]
[319795151,1710972641678,-493.38943377,0.00084102,31]
[319795153,1710972641688,-500.0,0.00084102,31]
[319795155,1710972641699,-500.0,0.00084102,31]
[319795157,1710972641710,-607.8023828,0.00084102,31]
[319795160,1710972641722,-500.0,0.00084102,31]
[319795162,1710972641731,-500.0,0.00084103,31]
[319795164,1710972641741,-500.0,0.00084103,31]
[319795166,1710972641752,-500.0,0.00084103,31]
[319795168,1710972641763,-1162.23,0.00084103,31]
[319795170,1710972641774,-504.57192306,0.00084103,31]
[319795172,1710972641786,-500.0,0.00084103,31]
[319795174,1710972641795,-500.0,0.00084103,31]
[319795176,1710972641805,-500.0,0.00084375,31]
[319795178,1710972641814,-500.0,0.00084375,31]
[319795180,1710972641823,-500.0,0.00084375,31]
[319795182,1710972641833,-500.0,0.00084376,31]
[319795184,1710972641842,-500.0,0.00084376,31]
[319795186,1710972641852,-500.0,0.00084377,31]
[319795188,1710972641862,-316.50518489,0.00084377,31]
[319795191,1710972641873,-500.0,0.00084377,31]
[319795193,1710972641882,-151.0,0.00084377,120]
[319795195,1710972641892,-1162.23,0.00084377,31]
[319795197,1710972641902,-500.0,0.00084377,31]
[319795199,1710972641912,-500.0,0.00084377,31]
[319795201,1710972641923,-81841.40071575,0.000844,120]
[319795409,1710972643098,-500.0,0.00083555,31]
[319795411,1710972643108,-2940.996515,0.000844,120]
[319795414,1710972643120,-1449.07557445,0.000844,120]
[319795416,1710972643131,-377.54518258,0.000844,120]
[319795420,1710972643163,-13148.40858887,0.000844,120]
[319795422,1710972643172,-1000.0,0.0008455,120]
[319795424,1710972643182,-509.20499603,0.00084649,31]
[319795426,1710972643191,-500.0,0.00084649,31]
[319795428,1710972643201,-500.0,0.00084649,31]
[319795430,1710972643210,-483.67761257,0.0008465,31]
[319795433,1710972643229,-358.13169284,0.00083555,31]
[319795736,1710972645974,-141.86830716,0.00083555,31]
[319795738,1710972645984,-16.32238743,0.0008465,31]
[319795740,1710972645993,-243.28958187,0.0008465,31]
[319795742,1710972646002,-151.0,0.00084651,120]
[319795744,1710972646011,-1162.23,0.00084651,31]
[319795746,1710972646021,-500.0,0.00084651,31]
[319795748,1710972646033,-500.0,0.00084651,31]
[319795750,1710972646042,-2000.0,0.00084879,120]
[319795752,1710972646051,-500.0,0.00084923,31]
[319795754,1710972646060,-500.0,0.00084923,31]
[319795756,1710972646069,-427.56392354,0.00084924,31]
[319795758,1710972646081,-72.43607646,0.00084924,31]
[319795760,1710972646090,-224.63717098,0.00084925,31]
[319795763,1710972646103,-937.59282902,0.00084925,31]
[319795764,1710972646112,-500.0,0.00084925,31]
[319795766,1710972646121,-352.51163344,0.00084925,31]
[319795768,1710972646132,-500.0,0.00085197,31]
[319795769,1710972646140,-500.0,0.00085197,31]
[319795770,1710972646149,-500.0,0.00085198,31]
[319795771,1710972646158,-151.0,0.00085199,120]
[319795772,1710972646167,-1162.23,0.00085199,31]
[319795773,1710972646176,-341.52179043,0.00085471,31]
[319795774,1710972646185,-500.0,0.00085471,31]
[319795775,1710972646194,-151.0,0.00085472,120]
[319795776,1710972646204,-500.0,0.00085472,31]
[319795777,1710972646213,-1162.23,0.00085473,31]
[319795778,1710972646222,-2000.0,0.00085728,120]
[319795779,1710972646231,-500.0,0.00085745,31]
[319795780,1710972646240,-196.83640999,0.00085746,31]
[319795781,1710972646249,-63.8076555,0.00085747,31]
[319795782,1710972646260,-1098.4223445,0.00085747,31]
[319795783,1710972646269,-500.0,0.00086019,31]
[319795784,1710972646278,-1162.23,0.00086021,31]
[319795785,1710972646290,-151.0,0.00086293,120]
[319795786,1710972646299,-500.0,0.00086293,31]
[319795787,1710972646308,-151.0,0.00086295,120]
[319795788,1710972646317,-1162.23,0.00086295,31]
[319795789,1710972646326,-500.0,0.00086567,31]
[319795790,1710972646335,-1162.23,0.00086569,31]
[319795791,1710972646344,-2000.0,0.00086585,120]
[319795792,1710972646353,-201.69257434,0.00086841,31]
[319795793,1710972646362,-1162.23,0.00086843,31]
[319795794,1710972646371,-243.543819,0.00087115,120]
[319795795,1710972646380,-1162.23,0.00087117,31]
[319795796,1710972646390,-1162.23,0.00087391,31]
[319795797,1710972646399,-2000.0,0.00087451,120]
[319795798,1710972646408,-599.61935121,0.00087567,2]
[319795799,1710972646418,-1000.0,0.00087609,120]
[319795800,1710972646427,-151.0,0.00087662,120]
[319795801,1710972646437,-1835.61,0.00087663,120]
[319795802,1710972646446,-1162.23,0.00087665,31]
[319795803,1710972646455,-1162.23,0.00087939,31]
[319795804,1710972646464,-151.0,0.0008821,120]
[319795805,1710972646473,-1162.23,0.00088213,31]
[319795806,1710972646482,-2000.0,0.00088326,120]
[319795807,1710972646491,-1162.23,0.00088487,31]
[319795808,1710972646500,-307.206267,0.0008849,120]
[319795809,1710972646509,-1162.23,0.00088761,31]
[319795810,1710972646518,-401.3748712,0.0008889,120]
[319795811,1710972646528,-153.0,0.0008889,120]
[319795812,1710972646540,-153.0,0.0008889,120]
[319795813,1710972646549,-153.0,0.0008889,120]
[319795814,1710972646558,-1696.16351574,0.00089,120]
[319795815,1710972646567,-151.0,0.00089,120]
[319795816,1710972646576,-1162.23,0.00089035,31]
[319795817,1710972646585,-1162.23,0.00089309,31]
[319795818,1710972646594,-172.98674,0.00089583,120]
[319795819,1710972646606,-1162.23,0.00089583,31]
[319795820,1710972646615,-1162.349,0.00089856,31]
[319795821,1710972646624,-25000.0,0.0009,51]
[319795822,1710972646634,-599.61935121,0.00091678,2]
[319795823,1710972646643,-271.91554496,0.00091766,120]
[319795824,1710972646653,-405.66455299,0.00092678,14]
[319795825,1710972646662,-241.81256807,0.00092678,14]
[319795826,1710972646672,-2065.71255432,0.00092678,14]
[319795827,1710972646686,-379.95854809,0.00092678,2]
[319795828,1710972646696,-343.03276652,0.00092678,14]
[319795829,1710972646705,-4310.47877657,0.00092678,30]
[319795830,1710972646714,-2353.75366302,0.00092679,90]
[319795831,1710972646723,-3033.84510019,0.0009268,120]
[319795832,1710972646736,-944.0078176,0.0009268,120]
[319800635,1710973129465,199.21201,0.00035616,120]
[319801032,1710973354037,253.78784196,0.00068691,120]
[319801402,1710973632940,150.0,0.00066591,4]
[319801547,1710973832155,-1863.57471211,0.00083,32]
[319801549,1710973832447,-176.42528789,0.00083,32]
[319801550,1710973832456,-500.0,0.00083552,31]
[319801552,1710973832466,-500.0,0.00083552,31]
[319801555,1710973832475,-500.0,0.00083552,31]
[319801556,1710973832484,-500.0,0.00083552,31]
[319801558,1710973832493,-500.0,0.00083552,31]
[319801560,1710973832502,-500.0,0.00083553,2]
[319801562,1710973832515,-500.0,0.00083555,31]
[319801564,1710973832524,-225.12063585,0.00083555,31]
[319801566,1710973832533,-500.0,0.00083555,31]
[319801568,1710973832542,-500.0,0.00083555,31]
[319801570,1710973832552,-500.0,0.00083555,31]
[319801572,1710973832561,-293.51275803,0.00083555,31]
[319801574,1710973832570,-500.0,0.00083555,31]
[319801576,1710973832579,-169.91564375,0.00083555,31]
[319801578,1710973832588,-431.02567448,0.00083555,31]
[319802083,1710973838103,-68.97432552,0.00083555,31]
[319802085,1710973838113,-500.0,0.00084102,31]